fUSD/lending_fUSD_20260622
["ID","MTS","AMOUNT","RATE_DAILY","PERIOD"]
[425968553,1782059443000,-500.0,0.00016438,2]
[425968551,1782059443000,-500.0,0.00016438,2]
[425968557,1782059443000,-500.0,0.00016438,2]
[425968556,1782059443000,-500.0,0.00016438,2]
[425968555,1782059443000,-500.0,0.00016438,2]
[425968554,1782059443000,-500.0,0.00016438,2]
[425968558,1782059443000,-500.0,0.00016438,2]
[425968559,1782059443000,-500.0,0.00016438,2]
[425968561,1782059443000,-500.0,0.00016438,2]
[425968560,1782059443000,-500.0,0.00016438,2]
[425968539,1782059443000,-500.0,0.00016438,2]
[425968562,1782059443000,-500.0,0.00016438,2]
[425968550,1782059443000,-500.0,0.00016438,2]
[425968541,1782059443000,-500.0,0.00016438,2]
[425968523,1782059443000,-200.0,0.0001634,2]
[425968536,1782059443000,-500.0,0.00016438,2]
[425968563,1782059443000,-500.0,0.00016438,2]
[425968514,1782059443000,-18425.37276819,0.00015425,2]
[425968515,1782059443000,-336.17,0.00015454,2]
[425968513,1782059443000,-2000.0,0.00015401,2]
[425968516,1782059443000,-1555.5,0.00015486,2]
[425968517,1782059443000,-270.55,0.0001549,2]
[425968519,1782059443000,-222.0,0.0001553,2]
[425968518,1782059443000,-469.87,0.00015512,2]
[425968520,1782059443000,-171.25,0.00015996,2]
[425968522,1782059443000,-1613.0535,0.00016034,2]
[425968524,1782059443000,-500.0,0.00016437,2]
[425968525,1782059443000,-208.8,0.00016438,2]
[425968521,1782059443000,-300.0,0.00016,2]
[425968526,1782059443000,-500.0,0.00016438,2]
[425968527,1782059443000,-500.0,0.00016438,2]
[425968528,1782059443000,-500.0,0.00016438,2]
[425968529,1782059443000,-500.0,0.00016438,2]
[425968530,1782059443000,-500.0,0.00016438,2]
[425968531,1782059443000,-500.0,0.00016438,2]
[425968533,1782059443000,-500.0,0.00016438,2]
[425968535,1782059443000,-500.0,0.00016438,2]
[425968532,1782059443000,-500.0,0.00016438,2]
[425968534,1782059443000,-500.0,0.00016438,2]
[425968537,1782059443000,-500.0,0.00016438,2]
[425968564,1782059443000,-500.0,0.00016438,2]
[425968566,1782059443000,-500.0,0.00016438,2]
[425968604,1782059443000,-732.22162032,0.00016438,2]
[425968594,1782059443000,-732.22162032,0.00016438,2]
[425968596,1782059443000,-732.22162032,0.00016438,2]
[425968599,1782059443000,-732.22162032,0.00016438,2]
[425968600,1782059443000,-732.22162032,0.00016438,2]
[425968602,1782059443000,-732.22162032,0.00016438,2]
[425968601,1782059443000,-732.22162032,0.00016438,2]
[425968598,1782059443000,-732.22162032,0.00016438,2]
[425968605,1782059443000,-732.22162032,0.00016438,2]
[425968603,1782059443000,-732.22162032,0.00016438,2]
[425968607,1782059443000,-737.30649267,0.00016438,2]
[425968608,1782059443000,-737.30649267,0.00016438,2]
[425968606,1782059443000,-732.22162032,0.00016438,2]
[425968609,1782059443000,-737.30649267,0.00016438,2]
[425968611,1782059443000,-737.30649267,0.00016438,2]
[425968613,1782059443000,-737.30649267,0.00016438,2]
[425968616,1782059443000,-151.0,0.00016438,2]
[425968610,1782059443000,-737.30649267,0.00016438,2]
[425968612,1782059443000,-737.30649267,0.00016438,2]
[425968614,1782059443000,-737.30649267,0.00016438,2]
[425968615,1782059443000,-151.000008,0.00016438,2]
[425968618,1782059443000,-158.29196,0.00016438,2]
[425968565,1782059443000,-500.0,0.00016438,2]
[425968617,1782059443000,-151.0,0.00016438,2]
[425968595,1782059443000,-732.22162032,0.00016438,2]
[425968593,1782059443000,-732.22162032,0.00016438,2]
[425968597,1782059443000,-732.22162032,0.00016438,2]
[425968589,1782059443000,-732.22162032,0.00016438,2]
[425968570,1782059443000,-500.0,0.00016438,2]
[425968568,1782059443000,-500.0,0.00016438,2]
[425968567,1782059443000,-500.0,0.00016438,2]
[425968569,1782059443000,-500.0,0.00016438,2]
[425968573,1782059443000,-500.0,0.00016438,2]
[425968571,1782059443000,-500.0,0.00016438,2]
[425968572,1782059443000,-500.0,0.00016438,2]
[425968575,1782059443000,-510.73421745,0.00016438,2]
[425968591,1782059443000,-732.22162032,0.00016438,2]
[425968576,1782059443000,-732.22162032,0.00016438,2]
[425968582,1782059443000,-732.22162032,0.00016438,2]
[425968579,1782059443000,-732.22162032,0.00016438,2]
[425968574,1782059443000,-500.0,0.00016438,2]
[425968580,1782059443000,-732.22162032,0.00016438,2]
[425968583,1782059443000,-732.22162032,0.00016438,2]
[425968590,1782059443000,-732.22162032,0.00016438,2]
[425968577,1782059443000,-732.22162032,0.00016438,2]
[425968587,1782059443000,-732.22162032,0.00016438,2]
[425968588,1782059443000,-732.22162032,0.00016438,2]
[425968585,1782059443000,-732.22162032,0.00016438,2]
[425968592,1782059443000,-732.22162032,0.00016438,2]
[425968584,1782059443000,-732.22162032,0.00016438,2]
[425968578,1782059443000,-732.22162032,0.00016438,2]
[425968581,1782059443000,-732.22162032,0.00016438,2]
[425968586,1782059443000,-732.22162032,0.00016438,2]
[425968656,1782059444000,-2245.05,0.00018356,2]
[425968646,1782059444000,-573.15363215,0.00017703,2]
[425968648,1782059444000,-500.0,0.00017741,2]
[425968651,1782059444000,-1058.60677044,0.00018,2]
[425968650,1782059444000,-3719.48,0.00018,2]
[425968653,1782059444000,-1171.08,0.000182,2]
[425968652,1782059444000,-350.0,0.00018,2]
[425968655,1782059444000,-14446.6800873,0.00018282,2]
[425968649,1782059444000,-233.88,0.00017842,2]
[425968654,1782059444000,-1865.36488656,0.00018226,2]
[425968658,1782059444000,-208.8,0.0001841,2]
[425968669,1782059444000,-270.55,0.00018932,2]
[425968660,1782059444000,-555.47,0.00018541,2]
[425968663,1782059444000,-593.773342,0.000186,2]
[425968659,1782059444000,-351.5,0.00018507,2]
[425968664,1782059444000,-18425.37276819,0.00018762,2]
[425968661,1782059444000,-4249.09900684,0.0001857,2]
[425968662,1782059444000,-7387.79100863,0.000186,2]
[425968665,1782059444000,-1934.38338736,0.00018774,2]
[425968668,1782059444000,-800.0,0.000189,6]
[425968666,1782059444000,-7387.79100863,0.000188,2]
[425968667,1782059444000,-593.773342,0.000188,2]
[425968647,1782059444000,-585.66,0.00017741,2]
[425968657,1782059444000,-150.0,0.000184,7]
[425968645,1782059444000,-1798.80895522,0.00017678,2]
[425968619,1782059444000,-151.0,0.00016438,2]
[425968644,1782059444000,-2408.62443507,0.0001757,2]
[425968620,1782059444000,-151.0,0.00016438,2]
[425968621,1782059444000,-151.0,0.00016438,2]
[425968626,1782059444000,-151.0,0.00016438,2]
[425968623,1782059444000,-151.0,0.00016438,2]
[425968622,1782059444000,-151.0,0.00016438,2]
[425968625,1782059444000,-151.0,0.00016438,2]
[425968624,1782059444000,-151.0,0.00016438,2]
[425968627,1782059444000,-151.0,0.00016438,2]
[425968628,1782059444000,-151.0,0.00016438,2]
[425968630,1782059444000,-251.07516,0.00016438,2]
[425968629,1782059444000,-151.0,0.00016438,2]
[425968632,1782059444000,-500.0,0.00016499,2]
[425968631,1782059444000,-585.66,0.00016499,2]
[425968633,1782059444000,-1000.0,0.000165,2]
[425968637,1782059444000,-171.25,0.00016937,2]
[425968634,1782059444000,-14446.6800873,0.00016518,2]
[425968639,1782059444000,-500.0,0.00016999,2]
[425968635,1782059444000,-1672.7364795,0.00016582,2]
[425968636,1782059444000,-555.47,0.00016685,2]
[425968638,1782059444000,-2000.0,0.00016999,2]
[425968641,1782059444000,-2011.0,0.000171,2]
[425968640,1782059444000,-18425.37276819,0.00017093,2]
[425968642,1782059444000,-1734.62772924,0.0001713,2]
[425968643,1782059444000,-270.55,0.00017211,2]
[425968671,1782059444000,-593.773342,0.00019,2]
[425968679,1782059444000,-316.0,0.000191,2]
[425968673,1782059444000,-157.0,0.00019,2]
[425968701,1782059444000,-1148.61238259,0.0001987,2]
[425968702,1782059444000,-1191.11104074,0.0001987,2]
[425968704,1782059444000,-1235.18214925,0.0001987,2]
[425968703,1782059444000,-151.0,0.0001987,2]
[425968705,1782059444000,-151.0,0.0001987,2]
[425968707,1782059444000,-1328.27659266,0.0001987,2]
[425968706,1782059444000,-1280.88388877,0.0001987,2]
[425968710,1782059444000,-151.0,0.0001987,2]
[425968709,1782059444000,-1377.42282658,0.0001987,2]
[425968708,1782059444000,-151.0,0.0001987,2]
[425968711,1782059444000,-174.61919141,0.0001987,2]
[425968712,1782059444000,-1428.38747117,0.0001987,2]
[425968713,1782059444000,-151.0,0.0001987,2]
[425968715,1782059444000,-1536.04360648,0.0001987,2]
[425968714,1782059444000,-1481.2378076,0.0001987,2]
[425968716,1782059444000,-151.0,0.0001987,2]
[425968717,1782059444000,-1592.87721992,0.0001987,2]
[425968720,1782059444000,-284.47766903,0.0001987,2]
[425968719,1782059444000,-578.20924308,0.0001987,2]
[425968718,1782059444000,-151.0,0.0001987,2]
[425968722,1782059444000,-209.40437684,0.0001987,2]
[425968721,1782059444000,-151.0,0.0001987,2]
[425968670,1782059444000,-7387.79100863,0.00019,2]
[425968700,1782059444000,-1107.63007,0.0001987,2]
[425968694,1782059444000,-6081.0,0.00019669,2]
[425968723,1782059444000,-500.0,0.0001987,2]
[425968696,1782059444000,-429.70900624,0.000198,2]
[425968698,1782059444000,-1030.0,0.0001987,2]
[425968672,1782059444000,-188.0,0.00019,2]
[425968674,1782059444000,-500.0,0.00019045,2]
[425968675,1782059444000,-6356.39799232,0.0001907,2]
[425968677,1782059444000,-576.0,0.000191,2]
[425968676,1782059444000,-8600.427,0.0001907,2]
[425968678,1782059444000,-748.11,0.000191,2]
[425968682,1782059444000,-151.0,0.00019178,2]
[425968681,1782059444000,-151.0,0.00019178,2]
[425968683,1782059444000,-163.275021,0.00019178,2]
[425968685,1782059444000,-593.773342,0.000192,2]
[425968680,1782059444000,-620.0,0.000191,2]
[425968684,1782059444000,-7387.79100863,0.000192,2]
[425968686,1782059444000,-2005.9555727,0.00019322,2]
[425968688,1782059444000,-593.773342,0.000194,2]
[425968689,1782059444000,-186.193351,0.00019452,2]
[425968697,1782059444000,-500.0,0.00019869,2]
[425968690,1782059444000,-7387.79100863,0.000195,2]
[425968691,1782059444000,-1000.0,0.00019503,2]
[425968692,1782059444000,-1089.63568229,0.00019567,3]
[425968693,1782059444000,-3560.0,0.00019669,2]
[425968695,1782059444000,-7387.79100863,0.000197,2]
[425968687,1782059444000,-7387.79100863,0.000194,2]
[425968699,1782059444000,-1068.11,0.0001987,2]
[425968758,1782059445000,-500.0,0.0001987,2]
[425968757,1782059445000,-500.0,0.0001987,2]
[425968753,1782059445000,-500.0,0.0001987,2]
[425968752,1782059445000,-500.0,0.0001987,2]
[425968756,1782059445000,-151.0,0.0001987,2]
[425968755,1782059445000,-151.0,0.0001987,2]
[425968750,1782059445000,-151.0,0.0001987,2]
[425968760,1782059445000,-151.0,0.0001987,2]
[425968754,1782059445000,-500.0,0.0001987,2]
[425968759,1782059445000,-151.0,0.0001987,2]
[425968771,1782059445000,-151.0,0.0001987,2]
[425968768,1782059445000,-151.0,0.0001987,2]
[425968764,1782059445000,-151.0,0.0001987,2]
[425968763,1782059445000,-151.0,0.0001987,2]
[425968769,1782059445000,-151.0,0.0001987,2]
[425968765,1782059445000,-500.0,0.0001987,2]
[425968767,1782059445000,-151.0,0.0001987,2]
[425968762,1782059445000,-500.0,0.0001987,2]
[425968766,1782059445000,-151.0,0.0001987,2]
[425968770,1782059445000,-151.0,0.0001987,2]
[425968749,1782059445000,-500.0,0.0001987,2]
[425968761,1782059445000,-500.0,0.0001987,2]
[425968751,1782059445000,-151.0,0.0001987,2]
[425968736,1782059445000,-151.0,0.0001987,2]
[425968746,1782059445000,-151.0,0.0001987,2]
[425968773,1782059445000,-500.0,0.0001987,2]
[425968724,1782059445000,-209.40437684,0.0001987,2]
[425968725,1782059445000,-151.0,0.0001987,2]
[425968727,1782059445000,-500.0,0.0001987,2]
[425968728,1782059445000,-501.38597833,0.0001987,2]
[425968726,1782059445000,-151.0,0.0001987,2]
[425968731,1782059445000,-500.0,0.0001987,2]
[425968730,1782059445000,-151.0,0.0001987,2]
[425968732,1782059445000,-151.0,0.0001987,2]
[425968729,1782059445000,-2080.17592889,0.0001987,2]
[425968733,1782059445000,-152.0,0.0001987,2]
[425968734,1782059445000,-500.0,0.0001987,2]
[425968735,1782059445000,-151.0,0.0001987,2]
[425968737,1782059445000,-721.12765534,0.0001987,2]
[425968738,1782059445000,-500.0,0.0001987,2]
[425968741,1782059445000,-151.0,0.0001987,2]
[425968740,1782059445000,-209.40437684,0.0001987,2]
[425968745,1782059445000,-152.0,0.0001987,2]
[425968739,1782059445000,-152.0,0.0001987,2]
[425968743,1782059445000,-500.0,0.0001987,2]
[425968744,1782059445000,-500.0,0.0001987,2]
[425968742,1782059445000,-151.0,0.0001987,2]
[425968747,1782059445000,-151.0,0.0001987,2]
[425968748,1782059445000,-500.0,0.0001987,2]
[425968772,1782059445000,-151.0,0.0001987,2]
[425968781,1782059445000,-173.76889968,0.00019925,2]
[425968777,1782059445000,-173.76889968,0.0001987,2]
[425968807,1782059445000,-173.76889968,0.00020035,2]
[425968805,1782059445000,-157.0,0.0002,2]
[425968808,1782059445000,-14446.6800873,0.00020047,2]
[425968810,1782059445000,-173.76889968,0.0002009,2]
[425968819,1782059445000,-173.76889968,0.000202,2]
[425968813,1782059445000,-7387.79100863,0.000201,2]
[425968821,1782059445000,-173.76889968,0.00020255,2]
[425968817,1782059445000,-241.6588648,0.000202,2]
[425968815,1782059445000,-173.76889968,0.00020145,2]
[425968826,1782059445000,-7387.79100863,0.000203,2]
[425968795,1782059445000,-169.0,0.0002,2]
[425968833,1782059445000,-173.76889968,0.00020365,2]
[425968836,1782059445000,-241.6588648,0.000204,2]
[425968830,1782059445000,-173.76889968,0.0002031,2]
[425968834,1782059445000,-208.8,0.00020381,2]
[425968837,1782059445000,-748.11,0.000204,2]
[425968774,1782059445000,-209.40437684,0.0001987,2]
[425968840,1782059445000,-217.15233878,0.00020418,2]
[425968841,1782059445000,-501.38597833,0.00020418,2]
[425968842,1782059445000,-2157.14243826,0.00020418,2]
[425968843,1782059445000,-151.0,0.00020418,2]
[425968839,1782059445000,-217.15233878,0.00020418,2]
[425968835,1782059445000,-555.47,0.00020397,2]
[425968802,1782059445000,-2397.54,0.0002,2]
[425968838,1782059445000,-181.08010149,0.00020418,2]
[425968803,1782059445000,-528.0,0.0002,2]
[425968801,1782059445000,-156.0,0.0002,2]
[425968776,1782059445000,-235.45835666,0.0001987,2]
[425968775,1782059445000,-165.29683498,0.0001987,2]
[425968780,1782059445000,-275.01256262,0.00019925,2]
[425968778,1782059445000,-7387.79100863,0.000199,2]
[425968782,1782059445000,-230.9,0.00019975,2]
[425968783,1782059445000,-173.76889968,0.0001998,2]
[425968785,1782059445000,-585.66,0.00019999,2]
[425968790,1782059445000,-100000.0,0.0002,2]
[425968789,1782059445000,-147408.37,0.0002,2]
[425968787,1782059445000,-500.0,0.00019999,2]
[425968779,1782059445000,-440.86112768,0.000199,2]
[425968786,1782059445000,-500.0,0.00019999,2]
[425968788,1782059445000,-500.0,0.00019999,2]
[425968799,1782059445000,-297.0,0.0002,2]
[425968800,1782059445000,-667.0,0.0002,2]
[425968796,1782059445000,-400.0,0.0002,2]
[425968797,1782059445000,-188.0,0.0002,2]
[425968798,1782059445000,-157.0,0.0002,2]
[425968793,1782059445000,-241.6588648,0.0002,2]
[425968792,1782059445000,-295.901505,0.0002,2]
[425968791,1782059445000,-1971.0,0.0002,2]
[425968784,1782059445000,-185.29189923,0.0001999,2]
[425968794,1782059445000,-511.0,0.0002,2]
[425968864,1782059446000,-169.0,0.00021,2]
[425968863,1782059446000,-511.0,0.00021,2]
[425968866,1782059446000,-733.947,0.00021,2]
[425968867,1782059446000,-188.0,0.00021,2]
[425968868,1782059446000,-157.0,0.00021,2]
[425968869,1782059446000,-297.0,0.00021,2]
[425968870,1782059446000,-667.0,0.00021,2]
[425968871,1782059446000,-156.0,0.00021,2]
[425968876,1782059446000,-1231.662,0.00021493,2]
[425968873,1782059446000,-157.0,0.00021,2]
[425968874,1782059446000,-8367.99802005,0.00021164,2]
[425968875,1782059446000,-180.401625,0.00021231,2]
[425968878,1782059446000,-233.5188934,0.00021514,2]
[425968879,1782059446000,-501.38597833,0.00021514,2]
[425968877,1782059446000,-194.72792766,0.00021514,2]
[425968861,1782059446000,-165.29683498,0.00020966,2]
[425968872,1782059446000,-528.0,0.00021,2]
[425968865,1782059446000,-748.11,0.00021,2]
[425968851,1782059446000,-241.6588648,0.000206,2]
[425968860,1782059446000,-225.18697532,0.00020966,2]
[425968882,1782059446000,-233.5188934,0.00021514,2]
[425968844,1782059446000,-209.05292702,0.00020418,2]
[425968846,1782059446000,-165.29683498,0.00020418,2]
[425968845,1782059446000,-217.15233878,0.00020418,2]
[425968848,1782059446000,-173.76889973,0.0002042,2]
[425968849,1782059446000,-18425.37276819,0.0002043,2]
[425968847,1782059446000,-235.45835666,0.00020418,2]
[425968862,1782059446000,-235.45835666,0.00020966,2]
[425968850,1782059446000,-573.15363215,0.00020503,2]
[425968856,1782059446000,-278.40799881,0.00020966,2]
[425968857,1782059446000,-2236.95670847,0.00020966,2]
[425968859,1782059446000,-151.0,0.00020966,2]
[425968853,1782059446000,-241.6588648,0.000208,2]
[425968854,1782059446000,-187.78006524,0.00020966,2]
[425968855,1782059446000,-225.18697532,0.00020966,2]
[425968858,1782059446000,-501.38597833,0.00020966,2]
[425968852,1782059446000,-270.55,0.00020653,2]
[425968880,1782059446000,-2319.72410669,0.00021514,2]
[425968889,1782059446000,-150.0,0.00021644,2]
[425968884,1782059446000,-235.45835666,0.00021514,2]
[425968906,1782059446000,-297.0,0.00022,2]
[425968903,1782059446000,-450.0,0.00022,2]
[425968904,1782059446000,-188.0,0.00022,2]
[425968907,1782059446000,-667.0,0.00022,2]
[425968908,1782059446000,-156.0,0.00022,2]
[425968909,1782059446000,-1042.94,0.00022,2]
[425968912,1782059446000,-201.93286098,0.00022062,2]
[425968905,1782059446000,-157.0,0.00022,2]
[425968910,1782059446000,-528.0,0.00022,2]
[425968915,1782059446000,-501.38597833,0.00022062,2]
[425968914,1782059446000,-2405.55389863,0.00022062,2]
[425968916,1782059446000,-151.0,0.00022062,2]
[425968918,1782059446000,-165.29683498,0.00022062,2]
[425968917,1782059446000,-242.15909246,0.00022062,2]
[425968919,1782059446000,-235.45835666,0.00022062,2]
[425968881,1782059446000,-151.0,0.00021514,2]
[425968913,1782059446000,-242.15909246,0.00022062,2]
[425968902,1782059446000,-169.0,0.00022,2]
[425968911,1782059446000,-157.0,0.00022,2]
[425968901,1782059446000,-511.0,0.00022,2]
[425968900,1782059446000,-166.0,0.00021918,2]
[425968883,1782059446000,-165.29683498,0.00021514,2]
[425968885,1782059446000,-154.34391451,0.00021515,2]
[425968886,1782059446000,-2397.54,0.00021609,2]
[425968887,1782059446000,-150.0,0.00021644,2]
[425968888,1782059446000,-150.0,0.00021644,2]
[425968890,1782059446000,-249.089,0.00021762,2]
[425968891,1782059446000,-250.0,0.00021762,2]
[425968920,1782059446000,-18425.37276819,0.00022099,2]
[425968894,1782059446000,-150.166,0.00021762,2]
[425968892,1782059446000,-168.31,0.00021762,2]
[425968895,1782059446000,-1413.0,0.000218,2]
[425968893,1782059446000,-150.0,0.00021762,2]
[425968897,1782059446000,-14446.6800873,0.00021811,2]
[425968896,1782059446000,-748.11,0.000218,2]
[425968898,1782059446000,-585.66,0.00021917,2]
[425968899,1782059446000,-5000.0,0.00021918,2]
[425968954,1782059447000,-501.38597833,0.00023158,2]
[425968952,1782059447000,-217.15233878,0.00023158,2]
[425968953,1782059447000,-260.4103811,0.00023158,2]
[425968949,1782059447000,-156.0,0.00023,2]
[425968945,1782059447000,-188.0,0.00023,2]
[425968948,1782059447000,-667.0,0.00023,2]
[425968946,1782059447000,-157.0,0.00023,2]
[425968951,1782059447000,-585.66,0.00023105,2]
[425968947,1782059447000,-297.0,0.00023,2]
[425968950,1782059447000,-528.0,0.00023,2]
[425968960,1782059447000,-500.0,0.00023249,2]
[425968957,1782059447000,-165.29683498,0.00023158,2]
[425968956,1782059447000,-151.0,0.00023158,2]
[425968959,1782059447000,-2397.54,0.00023218,7]
[425968964,1782059447000,-4257.42087992,0.00023504,2]
[425968962,1782059447000,-573.15363215,0.00023302,2]
[425968963,1782059447000,-168.42,0.0002341,2]
[425968965,1782059447000,-14446.6800873,0.00023575,2]
[425968961,1782059447000,-748.11,0.000233,7]
[425968944,1782059447000,-169.0,0.00023,2]
[425968955,1782059447000,-2586.85809042,0.00023158,2]
[425968943,1782059447000,-511.0,0.00023,2]
[425968924,1782059447000,-2253.00941545,0.00022407,2]
[425968941,1782059447000,-500.0,0.00022881,2]
[425968921,1782059447000,-555.47,0.00022254,2]
[425968922,1782059447000,-208.8,0.00022353,2]
[425968925,1782059447000,-2253.00941545,0.00022407,2]
[425968967,1782059447000,-2000.0,0.00023698,5]
[425968923,1782059447000,-2253.00941546,0.00022407,2]
[425968929,1782059447000,-209.40437684,0.0002261,2]
[425968926,1782059447000,-282.41,0.00022466,2]
[425968928,1782059447000,-747.80937859,0.00022609,2]
[425968932,1782059447000,-501.38597833,0.0002261,2]
[425968939,1782059447000,-748.11,0.000227,7]
[425968931,1782059447000,-2494.55939288,0.0002261,2]
[425968927,1782059447000,-599.60298507,0.00022609,2]
[425968933,1782059447000,-151.0,0.0002261,2]
[425968935,1782059447000,-165.29683498,0.0002261,2]
[425968938,1782059447000,-6081.0,0.00022669,2]
[425968936,1782059447000,-235.45835666,0.0002261,2]
[425968937,1782059447000,-3560.0,0.00022669,2]
[425968934,1782059447000,-196.91645465,0.0002261,2]
[425968942,1782059447000,-300.0,0.00023,2]
[425968940,1782059447000,-264.32,0.000228,14]
[425968930,1782059447000,-251.11897888,0.0002261,2]
[425968969,1782059447000,-270.0455652,0.00023706,2]
[425968958,1782059447000,-235.45835666,0.00023158,2]
[425968966,1782059447000,-4257.42087992,0.00023696,2]
[425968995,1782059447000,-76583.39212359,0.00024,2]
[425968991,1782059447000,-3042.27125141,0.00023946,2]
[425968999,1782059447000,-202.69833086,0.00024,2]
[425968993,1782059447000,-9491.40393929,0.00023972,2]
[425968997,1782059447000,-169.0,0.00024,2]
[425968998,1782059447000,-500.0,0.00024,2]
[425969001,1782059447000,-297.0,0.00024,2]
[425969000,1782059447000,-157.0,0.00024,2]
[425969002,1782059447000,-667.0,0.00024,2]
[425969006,1782059447000,-3820.86851025,0.00024012,2]
[425969004,1782059447000,-528.0,0.00024,2]
[425969003,1782059447000,-171.0,0.00024,2]
[425969005,1782059447000,-801.58536364,0.00024001,2]
[425969009,1782059447000,-462.06,0.00024137,2]
[425969008,1782059447000,-555.47,0.0002411,2]
[425969011,1782059447000,-235.12204525,0.00024195,2]
[425969010,1782059447000,-200.0,0.00024164,2]
[425969012,1782059447000,-3536.99453995,0.00024198,2]
[425969013,1782059447000,-500.0,0.00024199,2]
[425969014,1782059447000,-3536.99453995,0.00024219,2]
[425968968,1782059447000,-225.18697532,0.00023706,2]
[425968996,1782059447000,-511.0,0.00024,2]
[425968994,1782059447000,-500.0,0.00023999,2]
[425969007,1782059447000,-247.11,0.0002411,2]
[425968990,1782059447000,-3042.27125141,0.00023908,2]
[425968975,1782059447000,-440.86112767,0.00023736,2]
[425968992,1782059447000,-566.41,0.00023971,2]
[425968971,1782059447000,-2682.57183977,0.00023706,2]
[425968970,1782059447000,-501.38597833,0.00023706,2]
[425968974,1782059447000,-4257.42087992,0.00023716,2]
[425968973,1782059447000,-235.45835666,0.00023706,2]
[425968972,1782059447000,-165.29683498,0.00023706,2]
[425968980,1782059447000,-1027.0,0.00023759,2]
[425968979,1782059447000,-644.31,0.00023746,2]
[425968982,1782059447000,-396.28,0.00023785,2]
[425968976,1782059447000,-4257.42087992,0.00023737,2]
[425968977,1782059447000,-644.31,0.00023746,2]
[425968978,1782059447000,-644.33,0.00023746,2]
[425968981,1782059447000,-18425.37276819,0.00023767,2]
[425968984,1782059447000,-396.28,0.00023785,2]
[425968985,1782059447000,-396.28,0.00023788,2]
[425968986,1782059447000,-396.29,0.00023788,2]
[425968983,1782059447000,-644.33,0.00023785,2]
[425968989,1782059447000,-12822.93783105,0.00023852,2]
[425968988,1782059447000,-243.46374195,0.00023816,2]
[425968987,1782059447000,-585.66,0.00023809,2]
[425969054,1782059448000,-644.19,0.0002461,2]
[425969056,1782059448000,-396.24,0.0002461,2]
[425969055,1782059448000,-644.25,0.0002461,2]
[425969051,1782059448000,-396.28,0.0002461,2]
[425969049,1782059448000,-644.31,0.0002461,2]
[425969047,1782059448000,-396.29,0.0002461,2]
[425969048,1782059448000,-573.64,0.0002461,2]
[425969045,1782059448000,-644.31,0.00024607,2]
[425969053,1782059448000,-396.29,0.0002461,2]
[425969044,1782059448000,-482.43,0.00024607,2]
[425969046,1782059448000,-185.18,0.0002461,2]
[425969058,1782059448000,-644.31,0.0002461,2]
[425969067,1782059448000,-500.0,0.00024658,15]
[425969060,1782059448000,-500.0,0.00024642,2]
[425969057,1782059448000,-644.31,0.0002461,2]
[425969052,1782059448000,-396.29,0.0002461,2]
[425969062,1782059448000,-250.0,0.00024658,15]
[425969072,1782059448000,-1000.0,0.00024658,2]
[425969061,1782059448000,-3536.99453995,0.00024643,2]
[425969073,1782059448000,-151.0,0.00024658,2]
[425969064,1782059448000,-500.0,0.00024658,15]
[425969068,1782059448000,-500.0,0.00024658,15]
[425969065,1782059448000,-500.0,0.00024658,15]
[425969071,1782059448000,-175.27,0.00024658,2]
[425969043,1782059448000,-3536.99453995,0.00024595,2]
[425969059,1782059448000,-1042.94,0.00024616,7]
[425969041,1782059448000,-644.33,0.00024581,2]